bitfinex/quotes_SOLUSD_20230102
["timestamp","ask_amount","ask_price","bid_price","bid_amount"]
[1672647810930,114.8988,11.238,11.224,30.0]
[1672647811144,30.0,11.237,11.224,30.0]
[1672647811363,30.0,11.237,11.219,66.96]
[1672647811364,211.7488,11.237,11.219,66.96]
[1672647811575,142.77820573,11.236,11.216,96.98]
[1672647811802,66.86,11.235,11.216,96.98]
[1672647812102,30.0,11.233,11.216,96.98]
[1672647812423,30.0,11.231,11.216,96.98]
[1672647812627,134.8988,11.23,11.216,96.98]
[1672647813032,30.0,11.229,11.216,96.98]
[1672647813573,134.8988,11.23,11.216,96.98]
[1672647813790,118.543,11.229,11.216,96.98]
[1672647814199,118.543,11.229,11.218,30.0]
[1672647814418,118.543,11.229,11.219,66.96]
[1672647814613,118.543,11.229,11.22,30.0]
[1672647814824,118.543,11.229,11.219,66.96]
[1672647815243,118.543,11.229,11.218,30.0]
[1672647816606,118.543,11.229,11.22,30.0]
[1672647817875,66.86,11.235,11.22,45.80730786]
[1672647818079,30.0,11.235,11.222,30.0]
[1672647818290,30.0,11.235,11.223,20.0]
[1672647819022,30.0,11.235,11.222,50.0]
[1672647819887,30.0,11.235,11.222,20.0]
[1672647820503,30.0,11.235,11.221,182.7288]
[1672647820716,20.0,11.234,11.218,66.96]
[1672647820928,30.0,11.232,11.217,66.97]
[1672647821137,20.0,11.231,11.217,66.97]
[1672647821461,30.0,11.23,11.218,30.0]
[1672647821878,30.0,11.23,11.217,66.97]
[1672647822069,36.79,11.23,11.214,114.7776]
[1672647822277,178.293,11.229,11.214,114.7776]
[1672647822486,141.393,11.228,11.214,114.7776]
[1672647822912,30.0,11.227,11.214,114.7776]
[1672647823348,96.91,11.227,11.209,67.02]
[1672647823566,143.47530573,11.226,11.207,67.03]
[1672647823756,30.0,11.224,11.207,30.0]
[1672647824086,30.0,11.222,11.208,67.02]
[1672647824308,66.92,11.226,11.208,67.02]
[1672647824613,30.0,11.225,11.21,30.0]
[1672647824806,30.0,11.225,11.212,30.0]
[1672647825021,30.0,11.225,11.213,20.0]
[1672647825986,30.0,11.225,11.212,20.0]
[1672647826292,6.79,11.22,11.199,30.0]
[1672647826483,30.0,11.219,11.199,30.0]
[1672647826907,30.0,11.219,11.201,30.0]
[1672647827118,114.1784,11.218,11.202,179.0956]
[1672647827453,30.0,11.217,11.203,30.0]
[1672647827662,144.1784,11.217,11.204,67.05]
[1672647827854,144.1784,11.217,11.203,67.05]
[1672647828481,144.1784,11.217,11.202,112.0356]
[1672647828482,152.05780573,11.217,11.202,112.0356]
[1672647828914,114.1784,11.216,11.203,87.05]
[1672647829129,30.0,11.215,11.203,87.05]
[1672647829336,96.98,11.215,11.19,36.86]
[1672647829657,152.47031355,11.215,11.193,30.0]
[1672647829865,114.1784,11.216,11.195,30.0]
[1672647830074,30.0,11.215,11.196,67.09]
[1672647830402,30.0,11.215,11.197,30.0]
[1672647830593,30.0,11.215,11.199,30.0]
[1672647830807,114.1784,11.216,11.201,30.0]
[1672647831008,30.0,11.215,11.202,87.06]
[1672647831749,114.1784,11.216,11.203,30.0]
[1672647831970,114.1784,11.216,11.205,30.0]
[1672647832381,114.1784,11.216,11.206,67.03]
[1672647833448,30.0,11.215,11.204,67.05]
[1672647833637,30.0,11.215,11.205,20.0]
[1672647834384,30.0,11.215,11.204,20.0]
[1672647835001,144.1784,11.216,11.204,50.0]
[1672647835221,30.0,11.215,11.204,50.0]
[1672647835427,30.0,11.215,11.204,117.05]
[1672647835772,30.0,11.215,11.204,87.05]
[1672647836289,30.0,11.215,11.204,20.0]
[1672647837130,30.0,11.215,11.204,87.05]
[1672647837328,144.1784,11.216,11.205,30.0]
[1672647837541,30.0,11.215,11.204,87.05]
[1672647839318,114.1784,11.216,11.205,30.0]
[1672647839529,30.0,11.215,11.204,87.05]
[1672647839848,30.0,11.215,11.205,30.0]
[1672647840051,30.0,11.215,11.204,87.05]
[1672647840261,114.1784,11.216,11.205,30.0]
[1672647840472,114.1784,11.216,11.205,45.80730786]
[1672647840683,114.1784,11.216,11.204,20.0]
[1672647840908,30.0,11.215,11.204,20.0]
[1672647841103,30.0,11.215,11.204,50.0]
[1672647841318,30.0,11.215,11.204,20.0]
[1672647842385,114.1784,11.216,11.204,20.0]
[1672647842599,114.1784,11.216,11.204,87.05]
[1672647842996,114.1784,11.216,11.205,30.0]
[1672647843527,148.61939075,11.23,11.205,30.0]
[1672647843528,60.39581249,11.228,11.206,87.03]
[1672647843735,118.0901,11.226,11.21,6.73]
[1672647843947,118.0901,11.226,11.211,195.8959]
[1672647844149,118.0901,11.226,11.212,30.0]
[1672647844150,30.0,11.225,11.212,30.0]
[1672647844369,30.0,11.225,11.213,66.99]
[1672647844681,30.0,11.225,11.214,20.0]
[1672647844901,30.0,11.225,11.214,50.0]
[1672647845093,30.0,11.225,11.215,66.98]
[1672647845523,30.0,11.225,11.214,20.0]
[1672647847632,118.0901,11.226,11.215,30.0]
[1672647847825,118.0901,11.226,11.215,112.78730786]
[1672647848455,118.0901,11.226,11.215,96.98]
[1672647848670,118.0901,11.226,11.215,112.78730786]
[1672647848895,30.0,11.225,11.215,66.98]
[1672647850398,118.0901,11.226,11.215,66.98]
[1672647850805,30.0,11.225,11.215,66.98]
[1672647852904,118.0901,11.226,11.215,66.98]
[1672647853119,118.0901,11.226,11.216,30.0]
[1672647854174,117.5901,11.226,11.217,66.97]
[1672647854381,117.5901,11.226,11.218,30.0]
[1672647854801,117.5901,11.226,11.217,66.97]
[1672647855970,117.5901,11.226,11.216,66.98]
[1672647856378,117.5901,11.226,11.217,30.0]
[1672647856589,117.5901,11.226,11.218,66.96]
[1672647856797,117.5901,11.226,11.216,66.98]
[1672647857752,117.5901,11.226,11.217,30.0]
[1672647861230,117.5901,11.226,11.217,45.80730786]
[1672647861435,117.5901,11.226,11.219,30.0]
[1672647861644,30.0,11.233,11.219,30.0]
[1672647861645,66.88,11.233,11.219,30.0]
[1672647861861,60.39581249,11.236,11.22,73.73]
[1672647862080,205.95468404,11.248,11.22,73.73]
[1672647862081,112.1078,11.235,11.221,20.0]
[1672647862288,66.82,11.242,11.222,66.94]
[1672647862482,162.1078,11.241,11.223,50.0]
[1672647862691,162.1078,11.241,11.225,30.0]
[1672647862902,142.1078,11.241,11.227,30.0]
[1672647863112,112.1078,11.24,11.226,66.92]
[1672647863328,246.09361249,11.24,11.225,116.775]
[1672647863552,38.01948639,11.239,11.225,116.775]
[1672647863742,178.9578,11.238,11.225,116.775]
[1672647863957,30.0,11.237,11.225,116.775]
[1672647864177,142.1078,11.237,11.225,116.775]
[1672647865735,142.1078,11.237,11.226,30.0]
[1672647865955,142.1078,11.237,11.225,116.775]
[1672647866167,142.1078,11.237,11.226,30.0]
[1672647866381,112.1078,11.237,11.226,96.92]
[1672647866919,30.0,11.236,11.226,66.92]
[1672647867544,30.0,11.236,11.226,30.0]
[1672647867746,30.0,11.236,11.226,66.92]
[1672647868157,30.0,11.236,11.225,116.775]
[1672647868579,160.9028,11.237,11.226,30.0]
[1672647868789,160.9028,11.237,11.227,66.91]
[1672647869008,160.9028,11.237,11.228,30.0]
[1672647869223,160.9028,11.237,11.229,66.9]
[1672647869636,30.0,11.245,11.23,30.0]
[1672647869637,30.0,11.243,11.23,30.0]
[1672647869963,189.6732,11.246,11.231,86.89]
[1672647870151,159.6732,11.246,11.232,30.0]
[1672647870364,159.6732,11.246,11.234,30.0]
[1672647870592,159.6732,11.246,11.235,86.86]
[1672647870906,30.0,11.245,11.235,86.86]
[1672647871316,159.6732,11.246,11.235,86.86]
[1672647871541,30.0,11.245,11.235,86.86]
[1672647872571,159.6732,11.246,11.235,86.86]
[1672647872780,159.6732,11.246,11.235,102.66730786]
[1672647873425,159.6732,11.246,11.235,86.86]
[1672647873748,30.0,11.245,11.235,86.86]
[1672647873944,159.6732,11.246,11.235,86.86]
[1672647874168,159.6732,11.246,11.236,30.0]
[1672647874362,159.6732,11.246,11.235,86.86]
[1672647874363,159.6732,11.246,11.237,66.85]
[1672647874575,159.6732,11.246,11.236,66.86]
[1672647875520,159.6732,11.246,11.237,30.0]
[1672647876044,159.6732,11.246,11.236,66.86]
[1672647877001,159.6732,11.246,11.235,20.0]
[1672647877212,30.0,11.245,11.235,20.0]
[1672647877413,159.6732,11.246,11.235,20.0]
[1672647877627,159.6732,11.246,11.236,30.0]
[1672647877838,159.6732,11.246,11.235,20.0]
[1672647878053,30.0,11.245,11.235,20.0]
[1672647878795,30.0,11.245,11.234,20.0]
[1672647878986,147.5468,11.245,11.234,20.0]
[1672647879195,117.5468,11.245,11.235,30.0]
[1672647879530,30.0,11.244,11.236,66.86]
[1672647879721,30.0,11.244,11.235,66.86]
[1672647879930,117.5468,11.245,11.235,66.86]
[1672647880142,117.5468,11.245,11.235,82.66730786]
[1672647880347,117.5468,11.245,11.231,81.51780955]
[1672647880571,58.01948639,11.244,11.224,23.6092]
[1672647880784,305.33298639,11.244,11.224,23.6092]
[1672647880988,238.52298639,11.244,11.226,30.0]
[1672647881201,30.0,11.242,11.227,66.91]
[1672647881525,20.0,11.241,11.225,66.92]
[1672647881734,242.5811,11.241,11.225,66.92]
[1672647882139,30.0,11.24,11.226,30.0]
[1672647882346,185.7511,11.24,11.227,66.91]
[1672647882573,185.7511,11.24,11.228,30.0]
[1672647882793,185.7511,11.24,11.227,66.91]
[1672647882993,185.7511,11.24,11.226,66.92]
[1672647883184,155.7511,11.239,11.225,66.92]
[1672647883399,30.0,11.238,11.225,66.92]
[1672647883625,166.6414,11.238,11.226,30.0]
[1672647884041,30.0,11.237,11.227,66.91]
[1672647884892,166.6414,11.238,11.228,30.0]
[1672647885638,166.6414,11.238,11.229,66.9]
[1672647886572,166.6414,11.238,11.23,30.0]
[1672647886904,166.6414,11.238,11.229,66.9]
[1672647888470,166.6414,11.238,11.228,30.0]
[1672647888789,166.6414,11.238,11.229,66.9]
[1672647890354,166.6414,11.238,11.229,15.80730786]
[1672647890562,166.6414,11.238,11.231,30.0]
[1672647890771,24.1074,11.24,11.231,30.0]
[1672647891734,36.8,11.25,11.231,30.0]
[1672647891922,112.7189,11.245,11.233,30.0]
[1672647892132,30.0,11.244,11.234,86.87]
[1672647892362,30.0,11.244,11.235,30.0]
[1672647892887,112.7189,11.245,11.235,30.0]
[1672647893097,112.7189,11.245,11.236,66.86]
[1672647893493,112.7189,11.245,11.237,30.0]
[1672647893723,45.7049,11.246,11.237,30.0]
[1672647893937,45.7049,11.246,11.236,66.86]
[1672647894342,45.7049,11.246,11.237,30.0]
[1672647894777,45.7049,11.246,11.238,66.85]
[1672647894974,45.7049,11.246,11.239,30.0]
[1672647895196,118.7671,11.247,11.239,30.0]
[1672647895920,23.5084,11.248,11.238,66.85]
[1672647896341,23.5084,11.248,11.234,143.4804]
[1672647896554,30.0,11.247,11.236,30.0]
[1672647897294,30.0,11.247,11.235,86.86]
[1672647897508,30.0,11.247,11.236,30.0]
[1672647897717,147.7902,11.247,11.236,30.0]
[1672647897906,147.7902,11.247,11.235,50.0]
[1672647898665,117.7902,11.247,11.235,50.0]
[1672647898882,117.7902,11.247,11.236,30.0]
[1672647899095,117.7902,11.247,11.236,96.86]
[1672647900233,30.0,11.246,11.236,96.86]
[1672647900456,117.7902,11.247,11.236,96.86]
[1672647900665,117.7902,11.247,11.236,112.66730786]
[1672647900880,117.7902,11.247,11.236,96.86]
[1672647901198,117.7902,11.247,11.236,112.66730786]
[1672647901507,96.73,11.257,11.24,6.75]
[1672647901704,119.7601,11.255,11.241,86.83]
[1672647901921,24.8472,11.254,11.241,119.63730786]
[1672647902125,119.7601,11.255,11.242,15.80730786]
[1672647902330,30.0,11.254,11.243,86.82]
[1672647902545,30.0,11.254,11.244,20.0]
[1672647902766,119.7601,11.255,11.245,66.8]
[1672647903384,119.7601,11.255,11.246,30.0]
[1672647903593,119.7601,11.255,11.247,66.79]
[1672647903804,30.0,11.258,11.247,66.79]
[1672647904243,30.0,11.258,11.246,66.8]
[1672647904450,144.0153,11.258,11.246,66.8]
[1672647904667,144.0153,11.258,11.247,30.0]
[1672647904861,144.0153,11.258,11.248,66.79]
[1672647905278,144.0153,11.258,11.247,30.0]
[1672647905487,144.0153,11.258,11.248,66.79]
[1672647906033,114.0153,11.258,11.248,66.79]
[1672647906251,30.0,11.257,11.248,66.79]
[1672647906430,114.0153,11.258,11.246,66.8]
[1672647906640,114.0153,11.258,11.247,30.0]
[1672647906857,66.69,11.265,11.248,66.79]
[1672647907069,24.9545,11.263,11.25,6.72]
[1672647907286,50.0,11.262,11.251,66.77]
[1672647907499,50.0,11.262,11.247,45.80730786]
[1672647907500,162.0946,11.262,11.248,66.79]
[1672647907818,74.73419507,11.261,11.244,111.8711]
[1672647908024,30.0,11.26,11.245,20.0]
[1672647908221,30.0,11.258,11.245,20.0]
[1672647908437,66.73,11.257,11.245,20.0]
[1672647908648,30.0,11.256,11.245,20.0]
[1672647908854,66.74,11.255,11.245,20.0]
[1672647909085,30.0,11.254,11.245,20.0]
[1672647909484,30.0,11.254,11.244,20.0]
[1672647910028,30.0,11.254,11.242,50.0]
[1672647910349,30.0,11.254,11.242,116.82]
[1672647910537,30.0,11.254,11.242,50.0]
[1672647910748,111.0906,11.255,11.242,116.82]
[1672647911277,30.0,11.254,11.242,20.0]
[1672647912548,30.0,11.254,11.244,30.0]
[1672647912739,30.0,11.254,11.245,20.0]
[1672647913389,111.0906,11.255,11.244,20.0]
[1672647913595,30.0,11.254,11.244,20.0]
[1672647914007,111.0906,11.255,11.244,20.0]
[1672647914437,30.0,11.254,11.244,20.0]
[1672647914650,111.0906,11.255,11.245,30.0]
[1672647914962,30.0,11.254,11.245,66.8]
[1672647915912,30.0,11.254,11.244,20.0]
[1672647916537,30.0,11.254,11.243,50.0]
[1672647916760,30.0,11.254,11.243,20.0]
[1672647917395,20.0,11.253,11.238,66.85]
[1672647917605,96.76,11.252,11.234,177.6532]
[1672647917794,30.0,11.25,11.235,30.0]
[1672647918011,30.0,11.25,11.236,66.86]
[1672647918230,30.0,11.25,11.237,30.0]
[1672647918436,114.2642,11.249,11.238,66.85]
[1672647918644,30.0,11.255,11.239,30.0]
[1672647918859,30.0,11.254,11.24,66.83]
[1672647919189,30.0,11.254,11.241,30.0]
[1672647919505,30.0,11.254,11.242,86.82]
[1672647920324,30.0,11.254,11.242,20.0]
[1672647920765,30.0,11.254,11.241,50.0]
[1672647920972,30.0,11.254,11.242,66.82]
[1672647921179,30.0,11.254,11.243,20.0]
[1672647921497,114.2642,11.255,11.244,96.81]
[1672647921707,114.2642,11.255,11.246,30.0]
[1672647921909,114.2642,11.255,11.247,66.79]
[1672647922133,30.0,11.254,11.246,66.8]
[1672647922439,65.69961259,11.283,11.262,217.20867792]
[1672647922649,370.4185808,11.292,11.262,217.20867792]
[1672647922650,131.39922518,11.299,11.27,15.80730786]
[1672647922863,112.729,11.299,11.271,103.02968]
[1672647923066,112.729,11.299,11.272,16.37822]
[1672647923280,112.729,11.298,11.273,86.64]
[1672647923492,94.9581,11.304,11.28,6.75]
[1672647923493,66.46,11.303,11.28,6.75]
[1672647923689,6.75,11.3,11.281,66.59]
[1672647924011,6.75,11.3,11.274,160.70390295]
[1672647924012,263.57883777,11.299,11.274,160.70390295]
[1672647924220,65.69961259,11.294,11.272,30.0]
[1672647924550,6.75,11.29,11.272,30.0]
[1672647924862,66.54,11.289,11.272,30.0]
[1672647925050,20.0,11.288,11.272,30.0]
[1672647925261,66.56,11.287,11.261,66.71]
[1672647925471,247.6415,11.287,11.261,178.572]
[1672647925703,247.6415,11.287,11.261,208.572]
[1672647925907,247.6415,11.287,11.261,326.97609087]
[1672647926123,247.6415,11.287,11.262,15.80730786]
[1672647926319,247.6415,11.287,11.263,66.7]
[1672647926645,111.0561,11.286,11.263,66.7]
[1672647926835,96.57,11.285,11.264,15.80730786]
[1672647927048,207.6261,11.285,11.265,66.69]
[1672647927700,207.6261,11.285,11.265,82.49730786]
[1672647927892,207.6261,11.285,11.265,66.69]
[1672647928317,30.0,11.284,11.266,30.0]
[1672647928516,30.0,11.284,11.267,66.67]
[1672647928948,96.57,11.285,11.268,30.0]
[1672647929160,70.0254,11.286,11.27,6.68]
[1672647929376,70.0254,11.286,11.271,86.65]
[1672647929590,30.0,11.285,11.272,20.0]
[1672647929798,30.0,11.285,11.268,30.0]
[1672647929799,30.0,11.283,11.268,30.0]
[1672647929990,30.0,11.283,11.27,30.0]
[1672647930205,96.57,11.285,11.271,20.0]
[1672647930427,30.0,11.285,11.273,30.0]
[1672647930625,70.0254,11.286,11.274,20.0]
[1672647930840,30.0,11.285,11.274,20.0]
[1672647931271,96.57,11.285,11.265,100.3489]
[1672647931477,20.0,11.284,11.265,70.3489]
[1672647931692,30.0,11.282,11.265,70.3489]
[1672647931908,86.59,11.281,11.267,30.0]
[1672647932126,72.336,11.285,11.269,30.0]
[1672647932319,72.336,11.285,11.27,93.37]
[1672647932529,72.336,11.285,11.271,30.0]
[1672647932739,72.336,11.285,11.272,86.64]
[1672647932955,72.336,11.285,11.273,30.0]
[1672647933169,72.336,11.285,11.274,66.63]
[1672647933474,72.336,11.285,11.275,20.0]
[1672647933682,30.0,11.284,11.275,20.0]
[1672647933892,30.0,11.284,11.27,66.66]
[1672647934109,96.57,11.284,11.269,30.0]
[1672647934649,30.0,11.282,11.269,30.0]
[1672647934859,24.5853,11.285,11.27,89.10730786]
[1672647935172,24.5853,11.285,11.271,30.0]
[1672647935386,24.5853,11.285,11.272,66.64]
[1672647935583,24.5853,11.285,11.274,30.0]
[1672647935789,24.5853,11.285,11.275,86.63]
[1672647936001,24.5853,11.285,11.275,20.0]
[1672647936205,50.0,11.284,11.276,30.0]
[1672647936418,66.58,11.283,11.263,139.4764]
[1672647936737,30.0,11.282,11.265,20.0]
[1672647936948,20.0,11.281,11.266,96.68]
[1672647937158,90.7941,11.283,11.266,96.68]
[1672647937364,24.2141,11.283,11.267,35.80730786]
[1672647937690,24.2141,11.283,11.27,6.69]
[1672647937903,24.2141,11.283,11.272,30.0]
[1672647938113,24.2141,11.283,11.274,30.0]
[1672647938310,24.2141,11.283,11.275,20.0]
[1672647939593,24.2141,11.283,11.275,30.0]
[1672647939781,24.2141,11.283,11.274,20.0]
[1672647940214,24.2141,11.283,11.275,30.0]
[1672647940435,24.2141,11.283,11.276,66.62]
[1672647940622,30.0,11.286,11.276,66.62]
[1672647940833,30.0,11.286,11.275,66.63]
[1672647941044,86.57,11.285,11.263,111.7239]
[1672647941266,159.3271,11.285,11.263,111.7239]
[1672647941685,30.0,11.284,11.264,96.69]
[1672647942003,20.0,11.283,11.264,112.49730786]
[1672647942212,30.0,11.282,11.264,96.69]
[1672647942420,20.0,11.281,11.265,20.0]
[1672647942742,30.0,11.28,11.266,66.68]
[1672647943673,36.71,11.28,11.266,66.68]
[1672647945252,66.58,11.283,11.267,30.0]
[1672647945450,30.0,11.284,11.267,30.0]
[1672647945666,30.0,11.284,11.268,66.67]
[1672647946100,30.0,11.284,11.27,30.0]
[1672647946312,30.0,11.284,11.271,86.65]
[1672647946832,30.0,11.284,11.271,20.0]
[1672647947042,96.56,11.287,11.271,30.0]
[1672647947256,96.56,11.287,11.272,20.0]
[1672647947875,96.56,11.287,11.27,20.0]
[1672647948089,96.56,11.287,11.271,66.65]
[1672647948300,96.56,11.287,11.272,20.0]
[1672647949446,96.56,11.287,11.271,20.0]
[1672647949869,96.57,11.285,11.271,20.0]
[1672647950412,30.0,11.285,11.271,50.0]
[1672647950922,30.0,11.285,11.271,20.0]
[1672647951124,30.0,11.285,11.271,50.0]
[1672647951664,30.0,11.285,11.271,20.0]
[1672647952094,30.0,11.285,11.272,30.0]
[1672647952285,30.0,11.285,11.273,20.0]
[1672647952496,96.56,11.287,11.273,20.0]
[1672647952497,23.0088,11.286,11.273,20.0]
[1672647952717,23.0088,11.286,11.274,30.0]
[1672647952920,30.0,11.287,11.275,20.0]
[1672647953673,96.56,11.287,11.274,20.0]
[1672647953872,96.56,11.287,11.27,66.66]
[1672647954086,206.512,11.286,11.267,66.67]
[1672647954296,30.0,11.284,11.266,66.68]
[1672647954511,86.58,11.283,11.267,30.0]
[1672647954732,30.0,11.282,11.266,66.68]
[1672647954933,30.0,11.28,11.266,66.68]
[1672647955464,66.6,11.279,11.265,109.3286]
[1672647955980,30.0,11.278,11.265,109.3286]
[1672647959142,183.1102,11.279,11.265,109.3286]
[1672647959341,30.0,11.278,11.266,30.0]
[1672647959551,30.0,11.278,11.266,96.68]
[1672647959972,30.0,11.278,11.266,66.68]
[1672647961032,30.0,11.278,11.265,109.3286]
[1672647961442,30.0,11.278,11.266,66.68]
[1672647965769,30.0,11.282,11.266,66.68]
[1672647965770,66.55,11.288,11.267,30.0]
[1672647965966,113.3037,11.288,11.268,205.7025]
[1672647966294,143.3037,11.288,11.269,30.0]
[1672647966503,143.3037,11.288,11.271,30.0]
[1672647966504,190.3556,11.288,11.271,30.0]
[1672647966717,190.3556,11.288,11.272,66.64]
[1672647967128,96.56,11.287,11.273,20.0]
[1672647967650,96.56,11.287,11.268,23.5355]
[1672647967651,6.72,11.28,11.269,66.66]
[1672647967859,6.72,11.28,11.268,23.5355]
[1672647968816,30.0,11.282,11.268,23.5355]
[1672647969134,30.0,11.28,11.268,23.5355]
[1672647969342,66.6,11.279,11.26,201.21835495]
[1672647969660,30.0,11.278,11.263,15.80730786]
[1672647969874,30.0,11.278,11.261,230.9939]
[1672647969875,288.97326417,11.278,11.261,230.9939]
[1672647970511,288.97326417,11.278,11.262,50.0]
[1672647970689,288.97326417,11.278,11.263,66.7]
[1672647970906,288.97326417,11.278,11.265,30.0]
[1672647971128,288.97326417,11.278,11.265,66.69]
[1672647971338,288.97326417,11.278,11.265,30.0]
[1672647971533,197.6058,11.278,11.265,30.0]
[1672647971744,197.6058,11.278,11.264,96.69]
[1672647972073,197.6058,11.278,11.265,20.0]
[1672647972277,161.63105203,11.302,11.282,252.76999999]
[1672647972490,65.69961259,11.32,11.289,65.59278533]
[1672647972703,92.7806,11.325,11.294,65.59278533]
[1672647972920,42.57,11.324,11.296,65.59278533]
[1672647973115,65.69961259,11.319,11.288,131.18557067]
[1672647973326,131.39922518,11.311,11.287,95.85592208]
[1672647973636,33.61,11.3,11.275,65.59278533]
[1672647973844,66.48,11.299,11.276,66.62]
[1672647974057,66.48,11.299,11.28,6.69]
[1672647974276,66.44,11.307,11.283,66.58]
[1672647974599,111.182,11.307,11.283,66.58]
[1672647975002,30.0,11.298,11.283,66.58]
[1672647975205,5.0,11.298,11.29,33.59]
[1672647975425,5.0,11.298,11.291,66.53]
[1672647975641,5.0,11.298,11.291,137.55426162]
[1672647975852,30.0,11.306,11.291,66.53]
[1672647976065,66.45,11.305,11.285,66.57]
[1672647976275,6.68,11.3,11.295,30.0]
[1672647976476,66.48,11.299,11.295,30.0]
[1672647977216,30.0,11.299,11.282,252.76999999]
[1672647977424,30.0,11.299,11.29,6.72]
[1672647977637,30.0,11.299,11.291,66.53]
[1672647977858,30.0,11.304,11.291,66.53]
[1672647978174,30.0,11.304,11.292,20.0]
[1672647978393,94.7581,11.308,11.293,66.52]
[1672647978706,94.7581,11.308,11.294,20.0]
[1672647978892,23.5685,11.308,11.295,66.51]
[1672647979108,23.5685,11.308,11.29,6.72]
[1672647979109,86.44,11.307,11.285,30.0]
[1672647979311,66.44,11.307,11.291,15.80730786]
[1672647979519,23.5685,11.308,11.291,15.80730786]
[1672647979753,23.5685,11.308,11.292,96.53]
[1672647979949,30.0,11.307,11.294,30.0]
[1672647980158,66.44,11.306,11.294,30.0]
[1672647980371,66.44,11.306,11.292,30.0]
[1672647980587,66.44,11.306,11.293,20.0]
[1672647980899,66.44,11.306,11.288,20.0]
[1672647981110,66.44,11.306,11.289,66.54]
[1672647981321,66.44,11.306,11.29,20.0]
[1672647981531,30.0,11.305,11.291,66.53]
[1672647982171,86.46,11.304,11.291,30.0]
[1672647982798,6.72,11.3,11.286,109.2474]
[1672647982990,30.0,11.298,11.284,30.0]
[1672647983206,30.0,11.298,11.283,66.58]
[1672647983524,30.0,11.298,11.284,50.0]
[1672647983735,30.0,11.298,11.284,30.0]
[1672647984167,30.0,11.298,11.285,66.57]
[1672647984573,30.0,11.298,11.286,30.0]
[1672647984789,30.0,11.298,11.287,66.56]
[1672647985001,30.0,11.298,11.286,30.0]
[1672647985426,30.0,11.299,11.287,66.56]
[1672647985835,30.0,11.299,11.285,66.57]
[1672647986057,30.0,11.299,11.284,66.57]
[1672647986268,30.0,11.299,11.283,66.58]
[1672647986480,66.49,11.298,11.282,319.34999999]